fUSD/lending_fUSD_20260531
["ID","MTS","AMOUNT","RATE_DAILY","PERIOD"]
[423500513,1780170642000,-150.0,0.00013781,2]
[423500503,1780170642000,-500.0,0.00013699,2]
[423500497,1780170642000,-500.0,0.00013699,2]
[423500505,1780170642000,-500.0,0.00013699,2]
[423500493,1780170642000,-500.0,0.00013699,2]
[423500499,1780170642000,-500.0,0.00013699,2]
[423500501,1780170642000,-500.0,0.00013699,2]
[423500495,1780170642000,-500.0,0.00013699,2]
[423500596,1780170643000,-200.0,0.00014867,2]
[423500595,1780170643000,-433.0,0.00014721,2]
[423500593,1780170643000,-166.01,0.00014518,2]
[423500580,1780170643000,-151.0,0.00014136,2]
[423500589,1780170643000,-166.66,0.00014384,2]
[423500578,1780170643000,-157.526004,0.00014136,2]
[423500591,1780170643000,-640.0,0.00014483,2]
[423500565,1780170643000,-3041.894825,0.00014136,2]
[423500582,1780170643000,-166.66,0.00014247,2]
[423500576,1780170643000,-151.0,0.00014136,2]
[423500572,1780170643000,-151.0,0.00014136,2]
[423500574,1780170643000,-151.0,0.00014136,2]
[423500570,1780170643000,-151.0,0.00014136,2]
[423500567,1780170643000,-3041.894825,0.00014136,2]
[423500600,1780170643000,-160.855205,0.000149,2]
[423500585,1780170643000,-2000.0,0.0001438,2]
[423500598,1780170643000,-151.0,0.00014897,2]
[423500620,1780170643000,-551.39,0.00014999,2]
[423500604,1780170643000,-160.855205,0.000149,2]
[423500634,1780170643000,-36955.49408533,0.00015,2]
[423500632,1780170643000,-419.13,0.00014999,2]
[423500630,1780170643000,-500.0,0.00014999,2]
[423500628,1780170643000,-500.0,0.00014999,2]
[423500626,1780170643000,-551.43,0.00014999,2]
[423500624,1780170643000,-551.39,0.00014999,2]
[423500721,1780170643000,-481.22466142,0.00015,2]
[423500614,1780170643000,-151.0,0.00014997,2]
[423500616,1780170643000,-151.0,0.00014997,2]
[423500610,1780170643000,-151.0,0.00014997,2]
[423500612,1780170643000,-151.0,0.00014997,2]
[423500618,1780170643000,-551.39,0.00014999,2]
[423500608,1780170643000,-191.4554308,0.00014925,2]
[423500606,1780170643000,-160.855205,0.000149,2]
[423500622,1780170643000,-551.39,0.00014999,2]
[423500602,1780170643000,-160.855205,0.000149,2]
[423500845,1780170646000,-303.3,0.00012284,2]
[423500844,1780170646000,-760.0,0.00012284,2]
[423500910,1780171832000,-153.16,0.00011059,2]
[423500911,1780171832000,-1379.73708147,0.00011127,2]
[423500912,1780171832000,-620.26291853,0.00011127,2]
[423500917,1780171832000,-153.16,0.00011506,2]
[423500916,1780171832000,-153.16,0.00011417,2]
[423500913,1780171832000,-153.16,0.00011148,2]
[423500928,1780171832000,-1216.0,0.00011953,2]
[423500915,1780171832000,-153.16,0.00011327,2]
[423500920,1780171832000,-153.16,0.00011685,2]
[423500919,1780171832000,-153.16,0.00011596,2]
[423500918,1780171832000,-200.0,0.00011574,2]
[423500921,1780171832000,-127.29945493,0.00011775,2]
[423500922,1780171832000,-500.0,0.00011237,2]
[423500924,1780171832000,-25.86054507,0.00011775,2]
[423500929,1780171832000,-153.16,0.00011954,2]
[423500914,1780171832000,-153.16,0.00011238,2]
[423500927,1780171832000,-749.03,0.00011923,2]
[423500926,1780171832000,-153.16,0.00011864,2]
[423500942,1780171832000,-814.19988441,0.00012124,2]
[423500941,1780171832000,-1108.62641723,0.00012124,2]
[423500940,1780171832000,-2831.22602298,0.00012124,2]
[423500936,1780171832000,-151.0,0.00012121,2]
[423500935,1780171832000,-151.0,0.00012121,2]
[423500937,1780171832000,-398.61036557,0.00012123,2]
[423500939,1780171832000,-300.0,0.00012123,2]
[423500931,1780171832000,-153.16,0.00012043,2]
[423500932,1780171832000,-1200.0,0.00012062,2]
[423500934,1780171832000,-151.0,0.00012121,2]
[423500933,1780171832000,-166.17,0.00012064,2]
[423500930,1780171832000,-429.55486244,0.00012029,2]
[423500925,1780171832000,-199.26,0.00011833,2]
[423500938,1780171832000,-336.92761318,0.00012123,2]
[423500923,1780171832000,-589.0419518,0.00011237,2]
[423500968,1780171838000,-23561.862884,0.00012233,2]
[423500969,1780171838000,-17099.52876548,0.00012233,2]
[423500967,1780171838000,-260.285,0.00012233,2]
[423500973,1780171838000,-544.76228736,0.00012271,2]
[423500971,1780171838000,-829.60131988,0.00012234,2]
[423500978,1780171838000,-151.0,0.00012331,2]
[423500977,1780171838000,-500.0,0.00012331,2]
[423500980,1780171838000,-150.0,0.00012333,2]
[423500979,1780171838000,-151.0,0.00012331,2]
[423500985,1780171838000,-23561.86288397,0.00012529,2]
[423500972,1780171838000,-154.93,0.00012235,2]
[423500976,1780171838000,-151.0,0.00012321,2]
[423500970,1780171838000,-10762.11717121,0.00012233,2]
[423500960,1780171838000,-153.16,0.00012133,2]
[423500975,1780171838000,-223.13192573,0.00012272,2]
[423500963,1780171838000,-2243.8256,0.00012224,2]
[423500966,1780171838000,-3113.393,0.00012233,2]
[423500964,1780171838000,-29493.5363,0.00012224,2]
[423500965,1780171838000,-5000.0,0.00012224,2]
[423500961,1780171838000,-153.16,0.00012223,2]
[423500962,1780171838000,-150.0,0.00012223,2]
[423500988,1780171838000,-199.26,0.00012721,2]
[423500958,1780171838000,-2475593.29934544,0.00012124,2]
[423500959,1780171838000,-199.26,0.00012129,2]
[423500955,1780171838000,-2023.2261267,0.00012124,2]
[423500956,1780171838000,-422.26630739,0.00012124,2]
[423500954,1780171838000,-304.34619884,0.00012124,2]
[423500974,1780171838000,-7463.82011034,0.00012271,2]
[423500981,1780171838000,-1500000.0,0.00012334,2]
[423500957,1780171838000,-16902.80969701,0.00012124,2]
[423500983,1780171838000,-2000.0,0.00012434,2]
[423500987,1780171838000,-500.0,0.00012605,2]
[423501034,1780171838000,-403.39597363,0.00013425,2]
[423501037,1780171838000,-500.0,0.00013425,2]
[423501028,1780171838000,-17099.52876546,0.00013418,2]
[423501032,1780171838000,-500.0,0.00013425,2]
[423501023,1780171838000,-164.94,0.0001338,2]
[423501026,1780171838000,-23561.86288397,0.00013418,2]
[423501021,1780171838000,-255.0,0.00013311,2]
[423501030,1780171838000,-500.0,0.00013425,2]
[423501017,1780171838000,-1680.0,0.00013268,2]
[423501015,1780171838000,-215.58360558,0.00013266,2]
[423501013,1780171838000,-164.94,0.00013229,2]
[423501011,1780171838000,-500.0,0.00013153,2]
[423501009,1780171838000,-1669.93,0.00013145,2]
[423501019,1780171838000,-420.0,0.00013307,2]
[423501005,1780171838000,-17099.52876546,0.00013122,2]
[423500997,1780171838000,-204.89987102,0.00013045,2]
[423500986,1780171838000,-17099.52876546,0.00012529,2]
[423500984,1780171838000,-2000.0,0.00012518,2]
[423500990,1780171838000,-23561.86288397,0.00012826,2]
[423500989,1780171838000,-518.43964431,0.00012726,2]
[423501001,1780171838000,-154.93,0.00013109,2]
[423500991,1780171838000,-17099.52876546,0.00012826,2]
[423500982,1780171838000,-199.26,0.00012425,2]
[423500993,1780171838000,-164.94,0.00012926,2]
[423500999,1780171838000,-164.94,0.00013078,2]
[423500995,1780171838000,-199.26,0.00013017,2]
[423501003,1780171838000,-23561.86288397,0.00013122,2]
[423500992,1780171838000,-500.0,0.00012879,2]
[423501120,1780171839000,-500.0,0.00013425,2]
[423501138,1780171839000,-150.34604901,0.00013488,2]
[423501128,1780171839000,-243.896559,0.00013425,2]
[423501126,1780171839000,-239.59554171,0.00013425,2]
[423501124,1780171839000,-500.0,0.00013425,2]
[423501098,1780171839000,-500.0,0.00013425,2]
[423501118,1780171839000,-500.0,0.00013425,2]
[423501116,1780171839000,-500.0,0.00013425,2]
[423501112,1780171839000,-500.0,0.00013425,2]
[423501114,1780171839000,-500.0,0.00013425,2]
[423501100,1780171839000,-500.0,0.00013425,2]
[423501134,1780171839000,-150.0,0.00013488,2]
[423501122,1780171839000,-500.0,0.00013425,2]
[423501136,1780171839000,-150.0,0.00013488,2]
[423501150,1780171839000,-166.01,0.00013515,2]
[423501132,1780171839000,-1216.0,0.00013447,2]
[423501144,1780171839000,-150.0,0.00013488,2]
[423501140,1780171839000,-150.0,0.00013488,2]
[423501141,1780171839000,-150.0,0.00013488,2]
[423501154,1780171839000,-164.94,0.00013531,2]
[423501158,1780171839000,-150.0,0.00013581,2]
[423501162,1780171839000,-150.0,0.00013595,2]
[423501148,1780171839000,-150.0,0.00013488,2]
[423501164,1780171839000,-150.0,0.00013621,2]
[423501146,1780171839000,-150.0,0.00013488,2]
[423501160,1780171839000,-150.0,0.00013588,2]
[423501152,1780171839000,-150.0,0.00013521,2]
[423501110,1780171839000,-500.0,0.00013425,2]
[423501156,1780171839000,-150.0,0.00013554,2]
[423501130,1780171839000,-500.0,0.00013427,2]
[423501108,1780171839000,-500.0,0.00013425,2]
[423501085,1780171839000,-500.0,0.00013425,2]
[423501104,1780171839000,-609.45801931,0.00013425,2]
[423501039,1780171839000,-500.0,0.00013425,2]
[423501057,1780171839000,-150.0,0.00013425,2]
[423501047,1780171839000,-500.0,0.00013425,2]
[423501053,1780171839000,-500.0,0.00013425,2]
[423501059,1780171839000,-500.0,0.00013425,2]
[423501055,1780171839000,-350.0,0.00013425,2]
[423501170,1780171839000,-150.0,0.00013654,2]
[423501041,1780171839000,-500.0,0.00013425,2]
[423501043,1780171839000,-500.0,0.00013425,2]
[423501051,1780171839000,-500.0,0.00013425,2]
[423501045,1780171839000,-500.0,0.00013425,2]
[423501065,1780171839000,-500.0,0.00013425,2]
[423501067,1780171839000,-500.0,0.00013425,2]
[423501061,1780171839000,-500.0,0.00013425,2]
[423501063,1780171839000,-500.0,0.00013425,2]
[423501071,1780171839000,-500.0,0.00013425,2]
[423501082,1780171839000,-158.79341703,0.00013425,2]
[423501073,1780171839000,-199.01434305,0.00013425,2]
[423501069,1780171839000,-500.0,0.00013425,2]
[423501080,1780171839000,-500.0,0.00013425,2]
[423501076,1780171839000,-500.0,0.00013425,2]
[423501078,1780171839000,-500.0,0.00013425,2]
[423501088,1780171839000,-150.0,0.00013425,2]
[423501087,1780171839000,-500.0,0.00013425,2]
[423501092,1780171839000,-500.0,0.00013425,2]
[423501090,1780171839000,-500.0,0.00013425,2]
[423501096,1780171839000,-500.0,0.00013425,2]
[423501094,1780171839000,-500.0,0.00013425,2]
[423501102,1780171839000,-500.0,0.00013425,2]
[423501106,1780171839000,-500.0,0.00013425,2]
[423501166,1780171839000,-250.0,0.00013622,2]
[423501049,1780171839000,-388.56670401,0.00013425,2]
[423501172,1780171839000,-150.0,0.00013675,2]
[423501244,1780171839000,-500.0,0.00013698,2]
[423501246,1780171839000,-500.0,0.00013698,2]
[423501250,1780171839000,-500.0,0.00013698,2]
[423501252,1780171839000,-500.0,0.00013698,2]
[423501248,1780171839000,-500.0,0.00013698,2]
[423501254,1780171839000,-500.0,0.00013698,2]
[423501256,1780171839000,-500.0,0.00013698,2]
[423501258,1780171839000,-500.0,0.00013698,2]
[423501260,1780171839000,-500.0,0.00013698,2]
[423501266,1780171839000,-500.0,0.00013698,2]
[423501272,1780171839000,-500.0,0.00013698,2]
[423501274,1780171839000,-551.39,0.00013698,2]
[423501262,1780171839000,-500.0,0.00013698,2]
[423501264,1780171839000,-500.0,0.00013698,2]
[423501242,1780171839000,-500.0,0.00013698,2]
[423501268,1780171839000,-500.0,0.00013698,2]
[423501280,1780171839000,-551.39,0.00013698,2]
[423501276,1780171839000,-551.39,0.00013698,2]
[423501278,1780171839000,-551.39,0.00013698,2]
[423501287,1780171839000,-551.39,0.00013698,2]
[423501285,1780171839000,-551.39,0.00013698,2]
[423501299,1780171839000,-551.39,0.00013698,2]
[423501295,1780171839000,-551.39,0.00013698,2]
[423501289,1780171839000,-551.39,0.00013698,2]
[423501293,1780171839000,-551.39,0.00013698,2]
[423501283,1780171839000,-551.39,0.00013698,2]
[423501291,1780171839000,-551.39,0.00013698,2]
[423501297,1780171839000,-551.39,0.00013698,2]
[423501303,1780171839000,-551.39,0.00013698,2]
[423501168,1780171839000,-150.0,0.00013654,2]
[423501270,1780171839000,-500.0,0.00013698,2]
[423501240,1780171839000,-500.0,0.00013698,2]
[423501301,1780171839000,-551.39,0.00013698,2]
[423501227,1780171839000,-500.0,0.00013698,2]
[423501233,1780171839000,-500.0,0.00013698,2]
[423501174,1780171839000,-164.94,0.00013682,2]
[423501176,1780171839000,-150.31688556,0.00013686,2]
[423501191,1780171839000,-500.0,0.00013698,2]
[423501182,1780171839000,-500.0,0.00013698,2]
[423501178,1780171839000,-150.0,0.00013687,2]
[423501189,1780171839000,-500.0,0.00013698,2]
[423501180,1780171839000,-500.0,0.00013698,2]
[423501187,1780171839000,-500.0,0.00013698,2]
[423501193,1780171839000,-500.0,0.00013698,2]
[423501195,1780171839000,-500.0,0.00013698,2]
[423501197,1780171839000,-500.0,0.00013698,2]
[423501199,1780171839000,-500.0,0.00013698,2]
[423501217,1780171839000,-500.0,0.00013698,2]
[423501211,1780171839000,-500.0,0.00013698,2]
[423501185,1780171839000,-501.41833734,0.00013698,2]
[423501207,1780171839000,-500.0,0.00013698,2]
[423501201,1780171839000,-338.87344356,0.00013698,2]
[423501236,1780171839000,-500.0,0.00013698,2]
[423501238,1780171839000,-500.0,0.00013698,2]
[423501230,1780171839000,-594.15117224,0.00013698,2]
[423501225,1780171839000,-500.0,0.00013698,2]
[423501223,1780171839000,-500.0,0.00013698,2]
[423501232,1780171839000,-500.0,0.00013698,2]
[423501213,1780171839000,-500.0,0.00013698,2]
[423501219,1780171839000,-500.0,0.00013698,2]
[423501209,1780171839000,-500.0,0.00013698,2]
[423501203,1780171839000,-500.0,0.00013698,2]
[423501205,1780171839000,-500.0,0.00013698,2]
[423501221,1780171839000,-500.0,0.00013698,2]
[423501215,1780171839000,-500.0,0.00013698,2]
[423501395,1780171840000,-500.0,0.00013698,2]
[423501381,1780171840000,-500.0,0.00013698,2]
[423501379,1780171840000,-500.0,0.00013698,2]
[423501377,1780171840000,-500.0,0.00013698,2]
[423501376,1780171840000,-500.0,0.00013698,2]
[423501370,1780171840000,-500.0,0.00013698,2]
[423501364,1780171840000,-500.0,0.00013698,2]
[423501372,1780171840000,-500.0,0.00013698,2]
[423501368,1780171840000,-500.0,0.00013698,2]
[423501399,1780171840000,-500.0,0.00013698,2]
[423501365,1780171840000,-500.0,0.00013698,2]
[423501374,1780171840000,-500.0,0.00013698,2]
[423501366,1780171840000,-500.0,0.00013698,2]
[423501389,1780171840000,-500.0,0.00013698,2]
[423501398,1780171840000,-500.0,0.00013698,2]
[423501385,1780171840000,-500.0,0.00013698,2]
[423501383,1780171840000,-500.0,0.00013698,2]
[423501391,1780171840000,-500.0,0.00013698,2]
[423501393,1780171840000,-500.0,0.00013698,2]
[423501387,1780171840000,-500.0,0.00013698,2]
[423501401,1780171840000,-500.0,0.00013698,2]
[423501400,1780171840000,-500.0,0.00013698,2]
[423501402,1780171840000,-553.36280109,0.00013698,2]
[423501406,1780171840000,-500.0,0.00013698,2]
[423501411,1780171840000,-500.0,0.00013698,2]
[423501363,1780171840000,-503.21523285,0.00013698,2]
[423501409,1780171840000,-500.0,0.00013698,2]
[423501396,1780171840000,-500.0,0.00013698,2]
[423501367,1780171840000,-500.0,0.00013698,2]
[423501332,1780171840000,-500.0,0.00013698,2]
[423501360,1780171840000,-500.0,0.00013698,2]
[423501403,1780171840000,-500.0,0.00013698,2]
[423501307,1780171840000,-551.39,0.00013698,2]
[423501305,1780171840000,-551.39,0.00013698,2]
[423501321,1780171840000,-500.0,0.00013698,2]
[423501317,1780171840000,-500.0,0.00013698,2]
[423501326,1780171840000,-512.05018733,0.00013698,2]
[423501319,1780171840000,-500.0,0.00013698,2]
[423501309,1780171840000,-551.39,0.00013698,2]
[423501313,1780171840000,-500.0,0.00013698,2]
[423501330,1780171840000,-500.0,0.00013698,2]
[423501311,1780171840000,-500.0,0.00013698,2]
[423501323,1780171840000,-500.0,0.00013698,2]
[423501328,1780171840000,-500.0,0.00013698,2]
[423501315,1780171840000,-500.0,0.00013698,2]
[423501334,1780171840000,-500.0,0.00013698,2]
[423501336,1780171840000,-500.0,0.00013698,2]
[423501356,1780171840000,-500.0,0.00013698,2]
[423501348,1780171840000,-500.0,0.00013698,2]
[423501338,1780171840000,-500.0,0.00013698,2]
[423501350,1780171840000,-500.0,0.00013698,2]
[423501340,1780171840000,-500.0,0.00013698,2]
[423501354,1780171840000,-500.0,0.00013698,2]
[423501342,1780171840000,-500.0,0.00013698,2]
[423501344,1780171840000,-500.0,0.00013698,2]
[423501346,1780171840000,-500.0,0.00013698,2]
[423501352,1780171840000,-500.0,0.00013698,2]
[423501358,1780171840000,-500.0,0.00013698,2]
[423501362,1780171840000,-500.0,0.00013698,2]
[423501407,1780171840000,-500.0,0.00013698,2]
[423501404,1780171840000,-500.0,0.00013698,2]
[423501408,1780171840000,-500.0,0.00013698,2]
[423501438,1780171840000,-500.0,0.00013698,2]
[423501445,1780171840000,-500.0,0.00013698,2]
[423501443,1780171840000,-500.0,0.00013698,2]
[423501442,1780171840000,-500.0,0.00013698,2]
[423501446,1780171840000,-500.0,0.00013698,2]
[423501447,1780171840000,-500.0,0.00013698,2]
[423501452,1780171840000,-161.53446073,0.00013698,2]
[423501449,1780171840000,-500.0,0.00013698,2]
[423501454,1780171840000,-500.0,0.00013698,2]
[423501448,1780171840000,-500.0,0.00013698,2]
[423501450,1780171840000,-500.0,0.00013698,2]
[423501457,1780171840000,-500.0,0.00013698,2]
[423501451,1780171840000,-500.0,0.00013698,2]
[423501453,1780171840000,-500.0,0.00013698,2]
[423501456,1780171840000,-500.0,0.00013698,2]
[423501455,1780171840000,-500.0,0.00013698,2]
[423501458,1780171840000,-500.0,0.00013698,2]
[423501459,1780171840000,-500.0,0.00013698,2]
[423501466,1780171840000,-527.25,0.00013698,2]
[423501464,1780171840000,-500.0,0.00013698,2]
[423501465,1780171840000,-527.25,0.00013698,2]
[423501460,1780171840000,-500.0,0.00013698,2]
[423501469,1780171840000,-527.25,0.00013698,2]
[423501463,1780171840000,-500.0,0.00013698,2]
[423501461,1780171840000,-500.0,0.00013698,2]
[423501462,1780171840000,-500.0,0.00013698,2]
[423501410,1780171840000,-416.10004967,0.00013698,2]
[423501440,1780171840000,-500.0,0.00013698,2]
[423501439,1780171840000,-500.0,0.00013698,2]
[423501468,1780171840000,-527.25,0.00013698,2]
[423501441,1780171840000,-500.0,0.00013698,2]
[423501437,1780171840000,-500.0,0.00013698,2]
[423501405,1780171840000,-500.0,0.00013698,2]
[423501412,1780171840000,-500.0,0.00013698,2]
[423501413,1780171840000,-500.0,0.00013698,2]
[423501417,1780171840000,-500.0,0.00013698,2]
[423501422,1780171840000,-500.0,0.00013698,2]
[423501415,1780171840000,-500.0,0.00013698,2]
[423501418,1780171840000,-500.0,0.00013698,2]
[423501420,1780171840000,-500.0,0.00013698,2]
[423501416,1780171840000,-500.0,0.00013698,2]
[423501414,1780171840000,-500.0,0.00013698,2]
[423501419,1780171840000,-500.0,0.00013698,2]
[423501423,1780171840000,-500.0,0.00013698,2]
[423501421,1780171840000,-500.0,0.00013698,2]
[423501432,1780171840000,-500.0,0.00013698,2]
[423501424,1780171840000,-500.0,0.00013698,2]
[423501436,1780171840000,-500.0,0.00013698,2]
[423501435,1780171840000,-500.0,0.00013698,2]
[423501434,1780171840000,-500.0,0.00013698,2]
[423501428,1780171840000,-500.0,0.00013698,2]
[423501431,1780171840000,-500.0,0.00013698,2]
[423501433,1780171840000,-420.45070713,0.00013698,2]
[423501444,1780171840000,-500.0,0.00013698,2]
[423501427,1780171840000,-500.0,0.00013698,2]
[423501426,1780171840000,-500.0,0.00013698,2]
[423501425,1780171840000,-500.0,0.00013698,2]
[423501429,1780171840000,-500.0,0.00013698,2]
[423501430,1780171840000,-156.8613884,0.00013698,2]
[423501509,1780171841000,-500.0,0.00013698,2]
[423501510,1780171841000,-500.0,0.00013698,2]
[423501516,1780171841000,-245.97684644,0.00013698,2]
[423501508,1780171841000,-500.0,0.00013698,2]
[423501507,1780171841000,-500.0,0.00013698,2]
[423501497,1780171841000,-500.0,0.00013698,2]
[423501504,1780171841000,-500.0,0.00013698,2]
[423501500,1780171841000,-295.37631974,0.00013698,2]
[423501503,1780171841000,-500.0,0.00013698,2]
[423501502,1780171841000,-500.0,0.00013698,2]
[423501512,1780171841000,-500.0,0.00013698,2]
[423501498,1780171841000,-500.0,0.00013698,2]
[423501513,1780171841000,-500.0,0.00013698,2]
[423501522,1780171841000,-500.0,0.00013698,2]
[423501514,1780171841000,-500.0,0.00013698,2]
[423501511,1780171841000,-500.0,0.00013698,2]
[423501518,1780171841000,-500.0,0.00013698,2]
[423501517,1780171841000,-500.0,0.00013698,2]
[423501520,1780171841000,-500.0,0.00013698,2]
[423501519,1780171841000,-500.0,0.00013698,2]
[423501521,1780171841000,-500.0,0.00013698,2]
[423501523,1780171841000,-500.0,0.00013698,2]
[423501524,1780171841000,-500.0,0.00013698,2]
[423501526,1780171841000,-500.0,0.00013698,2]
[423501525,1780171841000,-500.0,0.00013698,2]
[423501531,1780171841000,-500.0,0.00013698,2]
[423501499,1780171841000,-500.0,0.00013698,2]
[423501515,1780171841000,-500.0,0.00013698,2]
[423501505,1780171841000,-500.0,0.00013698,2]
[423501495,1780171841000,-500.0,0.00013698,2]
[423501501,1780171841000,-500.0,0.00013698,2]
[423501528,1780171841000,-500.0,0.00013698,2]
[423501470,1780171841000,-527.25,0.00013698,2]
[423501472,1780171841000,-527.25,0.00013698,2]
[423501471,1780171841000,-527.25,0.00013698,2]
[423501475,1780171841000,-527.25,0.00013698,2]
[423501476,1780171841000,-527.25,0.00013698,2]
[423501478,1780171841000,-549.93789521,0.00013698,2]
[423501474,1780171841000,-527.25,0.00013698,2]
[423501481,1780171841000,-500.0,0.00013698,2]
[423501473,1780171841000,-527.25,0.00013698,2]
[423501479,1780171841000,-500.0,0.00013698,2]
[423501482,1780171841000,-500.0,0.00013698,2]
[423501477,1780171841000,-527.25,0.00013698,2]
[423501480,1780171841000,-500.0,0.00013698,2]
[423501483,1780171841000,-387.24040857,0.00013698,2]
[423501484,1780171841000,-500.0,0.00013698,2]
[423501490,1780171841000,-500.0,0.00013698,2]
[423501494,1780171841000,-500.0,0.00013698,2]
[423501489,1780171841000,-500.0,0.00013698,2]
[423501486,1780171841000,-500.0,0.00013698,2]
[423501492,1780171841000,-500.0,0.00013698,2]
[423501487,1780171841000,-500.0,0.00013698,2]
[423501488,1780171841000,-500.0,0.00013698,2]
[423501491,1780171841000,-500.0,0.00013698,2]
[423501493,1780171841000,-500.0,0.00013698,2]
[423501485,1780171841000,-500.0,0.00013698,2]
[423501496,1780171841000,-500.0,0.00013698,2]
[423501506,1780171841000,-500.0,0.00013698,2]
[423501527,1780171841000,-500.0,0.00013698,2]
[423501533,1780171841000,-2089.59,0.00013698,2]
[423501530,1780171841000,-500.0,0.00013698,2]
[423501565,1780171841000,-500.0,0.00013698,2]
[423501563,1780171841000,-191.0,0.00013698,2]
[423501569,1780171841000,-500.0,0.00013698,2]
[423501570,1780171841000,-500.0,0.00013698,2]
[423501564,1780171841000,-500.0,0.00013698,2]
[423501567,1780171841000,-500.0,0.00013698,2]
[423501568,1780171841000,-500.0,0.00013698,2]
[423501571,1780171841000,-500.0,0.00013698,2]
[423501576,1780171841000,-200.0,0.00013699,2]
[423501574,1780171841000,-500.0,0.00013698,2]
[423501575,1780171841000,-500.0,0.00013698,2]
[423501573,1780171841000,-500.0,0.00013698,2]
[423501582,1780171841000,-151.0,0.00013699,2]
[423501572,1780171841000,-500.0,0.00013698,2]
[423501580,1780171841000,-151.0,0.00013699,2]
[423501581,1780171841000,-151.0,0.00013699,2]
[423501577,1780171841000,-721.0,0.00013699,2]
[423501578,1780171841000,-2500.0,0.00013699,2]
[423501579,1780171841000,-151.0,0.00013699,2]
[423501583,1780171841000,-151.0,0.00013699,2]
[423501584,1780171841000,-151.0,0.00013699,2]
[423501589,1780171841000,-151.0,0.00013699,2]
[423501590,1780171841000,-151.0,0.00013699,2]
[423501585,1780171841000,-151.0,0.00013699,2]
[423501591,1780171841000,-151.0,0.00013699,2]
[423501588,1780171841000,-151.0,0.00013699,2]
[423501586,1780171841000,-151.0,0.00013699,2]
[423501566,1780171841000,-500.0,0.00013698,2]
[423501559,1780171841000,-500.0,0.00013698,2]
[423501529,1780171841000,-500.0,0.00013698,2]
[423501561,1780171841000,-500.0,0.00013698,2]
[423501587,1780171841000,-151.0,0.00013699,2]
[423501532,1780171841000,-500.0,0.00013698,2]
[423501545,1780171841000,-500.0,0.00013698,2]
[423501534,1780171841000,-2089.59,0.00013698,2]
[423501542,1780171841000,-2089.59,0.00013698,2]
[423501537,1780171841000,-2089.59,0.00013698,2]
[423501540,1780171841000,-2089.59,0.00013698,2]
[423501558,1780171841000,-500.0,0.00013698,2]
[423501544,1780171841000,-2089.59,0.00013698,2]
[423501539,1780171841000,-2089.59,0.00013698,2]
[423501535,1780171841000,-2089.59,0.00013698,2]
[423501538,1780171841000,-2089.59,0.00013698,2]
[423501541,1780171841000,-2089.59,0.00013698,2]
[423501543,1780171841000,-2089.59,0.00013698,2]
[423501536,1780171841000,-2089.59,0.00013698,2]
[423501554,1780171841000,-500.0,0.00013698,2]
[423501546,1780171841000,-500.0,0.00013698,2]